bitfinex-derivatives/quotes_SOLF0:USTF0_20250929
["timestamp","ask_amount","ask_price","bid_price","bid_amount"]
[1759149849829,3.40224645,206.68,206.62,1.31793221]
[1759149850016,3.40224645,206.69,206.62,1.31793221]
[1759149850220,3.40224645,206.68,206.62,1.31793221]
[1759149850420,3.40224645,206.69,206.62,1.31793221]
[1759149850625,3.40224645,206.68,206.62,5.67133221]
[1759149850826,3.40224645,206.69,206.62,5.67133221]
[1759149851122,4.9,206.7,206.65,7.7]
[1759149851324,8.30281071,206.7,206.64,9.01793221]
[1759149852019,3.40281071,206.69,206.64,13.37093221]
[1759149852222,8.30281071,206.69,206.65,7.7]
[1759149852422,4.9,206.69,206.65,7.7]
[1759149853225,4.9,206.69,206.64,1.31793221]
[1759149853426,3.40148663,206.69,206.62,5.67143221]
[1759149853630,4.9,206.69,206.62,5.67143221]
[1759149853823,8.30148663,206.69,206.62,5.67143221]
[1759149854025,3.40148663,206.68,206.62,5.67143221]
[1759149854828,3.40148663,206.68,206.63,4.3532]
[1759149855131,4.9,206.7,206.64,7.7]
[1759149855326,3.40148663,206.69,206.64,7.7]
[1759149855527,3.40148663,206.68,206.64,9.01793221]
[1759149855730,3.40148663,206.7,206.64,9.01793221]
[1759149855928,8.30148663,206.69,206.64,9.01793221]
[1759149856129,3.40148663,206.68,206.64,9.01793221]
[1759149856330,8.30148663,206.68,206.62,1.31793221]
[1759149856526,4.9,206.65,206.54,7.7]
[1759149856730,8.3011914,206.65,206.59,4.354]
[1759149857630,12.6541914,206.65,206.59,4.354]
[1759149857836,4.9,206.65,206.58,1.31793221]
[1759149858030,3.40027148,206.64,206.58,1.31793221]
[1759149858236,3.40027148,206.64,206.57,12.0545]
[1759149858426,4.94,206.63,206.52,7.53]
[1759149858633,8.34027148,206.63,206.54,1.31793221]
[1759149859030,4.3536,206.62,206.55,4.3548]
[1759149859234,4.94,206.63,206.55,7.53]
[1759149859531,3.39968257,206.64,206.59,7.53]
[1759149859732,3.39968257,206.65,206.59,7.53]
[1759149860739,3.39968257,206.65,206.6,4.3538]
[1759149860936,8.33968257,206.65,206.6,11.8838]
[1759149861231,4.94,206.65,206.61,7.53]
[1759149862035,4.94,206.64,206.6,4.3538]
[1759149862336,4.94,206.64,206.6,11.8838]
[1759149862536,3.39985224,206.65,206.61,7.53]
[1759149862737,8.33985224,206.66,206.61,7.53]
[1759149862939,3.39985224,206.65,206.62,7.53]
[1759149863134,4.94,206.66,206.62,7.53]
[1759149863530,8.34068614,206.66,206.62,7.53]
[1759149863732,4.94,206.66,206.62,7.53]
[1759149864240,4.94,206.66,206.62,11.8833]
[1759149864241,8.34092944,206.66,206.62,11.8833]
[1759149864441,4.94,206.66,206.62,11.8833]
[1759149864737,4.94,206.66,206.63,7.44]
[1759149864935,3.40143984,206.66,206.63,7.44]
[1759149865130,8.34143984,206.67,206.63,7.44]
[1759149865337,8.34143984,206.67,206.62,4.3533]
[1759149865338,8.34143984,206.66,206.6,5.67173221]
[1759149865536,4.94,206.66,206.6,5.67173221]
[1759149866046,8.34189853,206.66,206.6,5.67173221]
[1759149866245,4.94,206.66,206.6,5.67173221]
[1759149866847,8.34192595,206.66,206.6,5.67173221]
[1759149867554,12.69472595,206.66,206.6,1.31793221]
[1759149867754,3.40192733,206.65,206.58,5.67223221]
[1759149867949,4.94,206.64,206.56,1.31793221]
[1759149868550,4.94,206.64,206.55,7.44]
[1759149868750,4.94,206.64,206.56,1.31793221]
[1759149869558,9.2932,206.64,206.56,5.67263221]
[1759149869857,4.94,206.64,206.56,4.3547]
[1759149870051,4.94,206.64,206.55,7.44]
[1759149870052,4.94,206.62,206.55,8.75793221]
[1759149870954,4.94,206.71,206.62,7.44]
[1759149871154,3.40169917,206.7,206.65,1.31793221]
[1759149871355,3.40169917,206.69,206.63,8.75793221]
[1759149871657,4.94,206.67,206.63,8.75793221]
[1759149871856,8.34169917,206.67,206.63,8.75793221]
[1759149872156,4.94,206.67,206.63,8.75793221]
[1759149875360,4.94,206.67,206.63,1.31793221]
[1759149875658,8.3422271,206.67,206.63,1.31793221]
[1759149876156,34.2,206.73,206.66,7.44]
[1759149876356,8.34240071,206.72,206.67,7.44]
[1759149876562,3.40240071,206.71,206.68,1.31793221]
[1759149876757,3.40240071,206.7,206.68,1.31793221]
[1759149876961,3.40240071,206.71,206.68,1.31793221]
[1759149877262,3.40240071,206.7,206.68,1.31793221]
[1759149877463,3.40240071,206.71,206.68,1.31793221]
[1759149877761,3.40240071,206.7,206.68,1.31793221]
[1759149877958,4.94,206.7,206.68,1.31793221]
[1759149878158,3.40240071,206.69,206.65,8.75793221]
[1759149878660,3.40240071,206.69,206.66,7.44]
[1759149879763,8.34240071,206.69,206.65,5.67063221]
[1759149879955,9.2915,206.72,206.66,7.44]
[1759149880161,4.94,206.7,206.66,7.44]
[1759149880358,3.40373474,206.69,206.67,1.31793221]
[1759149880562,3.40373474,206.72,206.68,7.44]
[1759149880758,3.40373474,206.71,206.68,7.44]
[1759149881064,3.40373474,206.7,206.67,8.75793221]
[1759149881265,3.40373474,206.71,206.67,8.75793221]
[1759149881466,3.40373474,206.7,206.67,8.75793221]
[1759149881666,3.40373474,206.7,206.67,13.11023221]
[1759149883063,3.40373474,206.7,206.67,7.44]
[1759149883266,4.94,206.7,206.67,1.31793221]
[1759149883468,8.34373474,206.71,206.67,8.75793221]
[1759149883666,3.40373474,206.7,206.67,8.75793221]
[1759149884568,4.94,206.69,206.65,1.31793221]
[1759149884766,8.34373474,206.69,206.65,8.75793221]
[1759149884971,4.94,206.69,206.65,8.75793221]
[1759149885561,3.40451965,206.7,206.66,7.44]
[1759149885870,3.40451965,206.69,206.65,1.31793221]
[1759149886069,3.40451965,206.72,206.65,8.75793221]
[1759149886267,3.40451965,206.71,206.65,8.75793221]
[1759149886464,3.40451965,206.7,206.65,1.31793221]
[1759149886664,8.34451965,206.69,206.65,1.31793221]
[1759149886869,3.40451965,206.68,206.65,8.75793221]
[1759149887068,8.34451965,206.7,206.65,8.75793221]
[1759149887270,3.40451965,206.69,206.65,8.75793221]
[1759149887473,4.94,206.72,206.66,7.44]
[1759149887775,3.40497979,206.71,206.66,7.44]
[1759149888071,8.34497979,206.7,206.66,7.44]
[1759149888276,3.40497979,206.69,206.66,7.44]
[1759149888478,3.40493011,206.68,206.66,7.44]
[1759149888775,7.75633011,206.72,206.65,5.67073221]
[1759149888969,3.40493011,206.71,206.65,5.67073221]
[1759149889170,3.40493011,206.7,206.67,1.31793221]
[1759149889365,3.40493011,206.69,206.68,7.44]
[1759149890479,3.4049031,206.71,206.68,7.44]
[1759149890680,3.4049031,206.7,206.68,7.44]
[1759149890876,3.4049031,206.69,206.68,7.44]
[1759149891075,4.94,206.71,206.67,5.67023221]
[1759149891278,3.4049031,206.7,206.67,13.11023221]
[1759149891576,72.6461,206.67,206.51,8.11193131]
[1759149891773,4.94,206.59,206.51,1.31793221]
[1759149892080,67.7164,206.64,206.45,67.7766]
[1759149892081,8.3449031,206.58,206.53,8.75793221]
[1759149892285,4.94,206.58,206.54,7.44]
[1759149893276,3.40158594,206.59,206.53,8.75793221]
[1759149893482,80.7,206.6,206.53,8.75793221]
[1759149894380,80.7,206.6,206.53,7.44]
[1759149894682,80.7,206.6,206.53,11.7954]
[1759149895678,82.01793221,206.6,206.53,11.7954]
[1759149896278,80.7,206.6,206.53,11.7954]
[1759149897275,4.94,206.59,206.53,7.44]
[1759149897476,80.7,206.6,206.53,7.44]
[1759149898784,80.7,206.6,206.53,11.7954]
[1759149899589,85.0539,206.6,206.53,11.7954]
[1759149900887,80.7,206.6,206.54,4.355]
[1759149901390,4.94,206.62,206.54,4.355]
[1759149901580,4.94,206.62,206.51,4.3556]
[1759149901982,4.94,206.62,206.49,7.49]
[1759149901983,4.94,206.59,206.49,7.49]
[1759149902687,4.94,206.59,206.51,4.3556]
[1759149902883,4.94,206.61,206.49,7.49]
[1759149903083,73.18119917,206.61,206.49,7.49]
[1759149903284,4.94,206.59,206.49,7.49]
[1759149903480,4.3547,206.57,206.49,11.846]
[1759149903681,72.6747,206.58,206.42,7.49]
[1759149903987,4.94,206.56,206.43,7.49]
[1759149904186,4.94,206.56,206.46,7.49]
[1759149904788,4.94,206.56,206.46,11.8469]
[1759149905286,4.3551,206.55,206.46,11.8469]
[1759149906091,4.94,206.56,206.46,7.49]
[1759149906295,4.94,206.56,206.5,7.49]
[1759149906991,4.3542,206.59,206.51,4.3556]
[1759149907995,4.3545,206.58,206.5,7.49]
[1759149908290,4.94,206.57,206.5,7.49]
[1759149908497,4.94,206.57,206.48,6.41806163]
[1759149908892,4.94,206.57,206.48,2.06186163]
[1759149909790,4.3551,206.55,206.47,4.3565]
[1759149909991,4.94,206.57,206.47,4.3565]
[1759149910592,4.94,206.57,206.47,7.49]
[1759149911700,4.94,206.57,206.49,4.3561]
[1759149911999,4.94,206.57,206.5,7.49]
[1759149913596,4.94,206.57,206.51,4.3557]
[1759149913894,67.0,206.6,206.5,7.49]
[1759149915702,71.3541,206.6,206.52,4.3554]
[1759149916603,71.3541,206.6,206.5,7.49]
[1759149916802,67.0,206.6,206.5,7.49]
[1759149916999,67.0,206.6,206.53,7.46]
[1759149917997,67.0,206.6,206.54,4.3552]
[1759149918697,71.94,206.6,206.55,11.8148]
[1759149919900,4.94,206.59,206.55,11.8148]
[1759149920806,67.0,206.6,206.56,7.46]
[1759149921005,67.0,206.6,206.55,4.3548]
[1759149921202,67.0,206.6,206.56,7.46]
[1759149921407,71.94,206.6,206.56,7.46]
[1759149922502,67.0,206.6,206.57,7.46]
[1759149922800,4.94,206.63,206.55,7.46]
[1759149923599,4.94,206.63,206.58,4.3542]
[1759149923803,4.94,206.63,206.58,11.8142]
[1759149924002,476.48,206.67,206.57,7.57]
[1759149924206,480.8325,206.67,206.61,4.3536]
[1759149924707,476.48,206.67,206.61,4.3536]
[1759149925602,476.48,206.67,206.55,2.06186163]
[1759149926005,480.8326,206.67,206.59,4.3539]
[1759149926206,480.8326,206.67,206.55,2.06186163]
[1759149926905,480.8326,206.67,206.61,4.3536]
[1759149929096,124.32,206.67,206.62,4.3534]
[1759149929404,124.32,206.67,206.59,7.57]
[1759149929808,124.32,206.67,206.61,4.3536]
[1759149930107,124.32,206.67,206.54,7.57]
[1759149930407,7.55,206.63,206.57,4.3545]
[1759149932006,7.55,206.66,206.58,4.3542]
[1759149932207,3.4145217,206.65,206.58,4.3542]
[1759149932402,3.4145217,206.65,206.56,7.57]
[1759149932804,7.55,206.62,206.56,7.57]
[1759149933798,11.9034,206.63,206.57,4.3544]
[1759149934106,4.3528,206.66,206.57,7.57]
[1759149934311,3.41677741,206.66,206.58,7.57]
[1759149934615,126.91,206.67,206.58,7.57]
[1759149934906,126.91,206.67,206.62,11.9233]
[1759149935207,126.91,206.67,206.6,7.57]
[1759149936708,126.91,206.67,206.63,4.3531]
[1759149937211,126.91,206.67,206.64,4.3529]
[1759149937708,7.55,206.66,206.64,4.3529]
[1759149937909,119.36,206.67,206.64,11.9229]
[1759149938309,126.91,206.67,206.64,4.3529]
[1759149938512,119.36,206.67,206.65,11.9227]
[1759149939002,7.55,206.71,206.65,11.9227]
[1759149939205,119.28,206.72,206.64,7.57]
[1759149939610,7.55,206.71,206.65,2.06186163]
[1759149940913,7.55,206.71,206.65,6.41456163]
[1759149941513,7.55,206.71,206.64,9.63186163]
[1759149941810,7.55,206.71,206.6,7.57]
[1759149942013,7.55,206.71,206.63,2.06186163]
[1759149942206,119.28,206.72,206.6,9.63186163]
[1759149942412,7.55,206.7,206.6,9.63186163]
[1759149942609,7.55,206.67,206.6,7.57]
[1759149942811,7.55,206.67,206.58,2.06186163]
[1759149944014,4.3528,206.66,206.59,4.3541]
[1759149944407,67.7021,206.68,206.56,9.63186163]
[1759149944611,4.3533,206.63,206.57,4.3544]
[1759149945413,4.3529,206.65,206.58,4.3542]
[1759149947015,4.3532,206.64,206.58,4.3542]
[1759149947616,4.3532,206.64,206.56,13.98656163]
[1759149947913,7.55,206.63,206.56,13.98656163]
[1759149948612,4.3535,206.62,206.54,4.3551]
[1759149948813,7.55,206.61,206.54,4.3551]
[1759149949510,7.55,206.61,206.55,4.3548]
[1759149949708,14.11447334,206.72,206.55,4.3548]
[1759149949709,7.55,206.67,206.56,75.3106]
[1759149950007,0.84217659,206.75,206.65,4.3528]
[1759149950008,7.55,206.73,206.65,4.3528]
[1759149950214,3.41088759,206.72,206.64,2.06186163]
[1759149950617,3.41132569,206.72,206.65,7.57]
[1759149951117,3.41132569,206.72,206.67,4.3523]
[1759149951421,3.41132569,206.74,206.66,7.57]
[1759149952016,3.41132569,206.74,206.68,4.352]
[1759149952818,7.76232569,206.74,206.66,11.9226]
[1759149953217,7.76232569,206.74,206.66,7.57]
[1759149954622,7.76232569,206.74,206.67,4.3523]
[1759149955821,3.41132569,206.74,206.67,4.3523]
[1759149956024,3.41132569,206.74,206.68,4.3521]
[1759149956217,3.41132569,206.74,206.68,12.0921]
[1759149956613,3.41132569,206.74,206.71,7.74]
[1759149956817,3.41132569,206.78,206.71,7.74]
[1759149957019,3.41132569,206.77,206.71,7.74]
[1759149957318,11.30132569,206.76,206.71,7.74]
[1759149957519,3.41132569,206.75,206.71,7.74]
[1759149957720,3.41132569,206.75,206.71,4.3514]
[1759149957919,127.15,206.8,206.71,4.3514]
[1759149957920,3.41132569,206.78,206.71,4.3514]
[1759149958112,3.41132569,206.79,206.71,2.06186163]
[1759149958317,3.41132569,206.79,206.75,7.74]
[1759149959017,3.41132569,206.79,206.7,67.6946]
[1759149959018,3.41132569,206.79,206.77,7.74]
[1759149959721,127.15,206.8,206.76,1.31661748]
[1759149959925,120.59661748,206.85,206.76,1.31661748]
[1759149960224,12.2395,206.81,206.74,1.31661748]
[1759149960525,3.41096775,206.8,206.72,1.31661748]
[1759149961319,7.76086775,206.8,206.72,1.31661748]
[1759149961826,7.76086775,206.8,206.74,1.31661748]
[1759149962022,3.41096775,206.8,206.74,1.31661748]
[1759149962222,3.41096775,206.8,206.74,9.05661748]
[1759149962527,4.3492,206.83,206.76,1.31661748]
[1759149962822,7.89,206.82,206.76,1.31661748]
[1759149963021,7.89,206.8,206.76,1.31661748]
[1759149963418,7.89,206.8,206.76,9.05661748]
[1759149964620,4.3494,206.82,206.75,9.05661748]
[1759149965122,4.3494,206.82,206.75,13.40721748]
[1759149965425,3.40748759,206.83,206.75,13.40721748]
[1759149966126,7.75668759,206.83,206.75,13.40721748]
[1759149966326,3.40748759,206.83,206.76,4.3504]
[1759149966527,7.89,206.84,206.79,1.31661748]
[1759149966820,1.31661748,206.87,206.79,13.40631748]
[1759149966821,4.3483,206.87,206.79,13.40631748]
[1759149967025,7.75331486,206.87,206.79,13.40631748]
[1759149967333,1.31661748,206.85,206.76,1.31661748]
[1759149967527,7.89,206.84,206.76,1.31661748]
[1759149967727,4.3492,206.83,206.76,1.31661748]
[1759149969521,4.3492,206.83,206.76,9.05661748]
[1759149971325,4.3492,206.83,206.76,13.40701748]
[1759149971526,4.3492,206.83,206.76,9.05661748]
[1759149972124,7.89,206.84,206.78,1.31661748]
[1759149972825,12.2383,206.87,206.78,9.05661748]
[1759149973531,4.3487,206.85,206.78,13.40661748]
[1759149973832,7.89,206.84,206.78,13.40661748]
[1759149974227,11.8583,206.87,206.78,13.40661748]
[1759149974627,11.8583,206.87,206.8,1.31661748]
[1759149974628,7.51,206.87,206.8,1.31661748]
[1759149974841,7.51,206.87,206.83,7.94]
[1759149975023,2.15816273,206.9,206.82,9.25661748]
[1759149975024,0.84154525,206.9,206.82,9.25661748]
[1759149976628,4.3479,206.89,206.82,9.25661748]
[1759149976930,0.84154525,206.9,206.82,9.25661748]
[1759149977330,5.18924525,206.9,206.82,13.60571748]
[1759149977531,0.84154525,206.9,206.82,9.25661748]
[1759149977932,4.3481,206.88,206.82,9.25661748]
[1759149978636,7.51,206.89,206.82,9.25661748]
[1759149978832,5.18924525,206.9,206.84,1.31661748]
[1759149979424,4.3479,206.89,206.82,12.2891]
[1759149979730,8.35154525,206.9,206.82,9.25661748]
[1759149980635,4.3481,206.88,206.82,9.25661748]
[1759149981732,12.69924525,206.9,206.82,9.25661748]
[1759149982136,8.35154525,206.9,206.82,9.25661748]
[1759149983043,4.3481,206.88,206.82,9.25661748]
[1759149983641,8.35154525,206.9,206.82,9.25661748]
[1759149984141,8.35154525,206.9,206.82,13.60571748]
[1759149984338,8.35154525,206.9,206.84,1.31661748]
[1759149984640,119.12,206.92,206.86,8.68661748]
[1759149986446,119.12,206.92,206.89,7.37]
[1759149988039,7.59,206.94,206.88,13.03451748]
[1759149988238,7.59,206.94,206.9,1.31661748]
[1759149988535,126.63,206.98,206.91,7.37]
[1759149988940,7.59,206.98,206.91,7.37]
[1759149989148,126.63,206.98,206.91,7.37]
[1759149989646,4.3461,206.97,206.91,7.37]
[1759149989852,126.63,206.98,206.9,1.31661748]
[1759149991140,4.3465,206.96,206.9,1.31661748]
[1759149991341,11.9365,206.96,206.9,1.31661748]
[1759149992741,7.59,206.96,206.92,1.31661748]
[1759149992947,7.59,206.96,206.92,8.68661748]
[1759149993849,7.59,206.95,206.92,8.68661748]
[1759149994245,7.59,206.95,206.84,67.6488]
[1759149994246,7.59,206.95,206.9,1.31661748]
[1759149994451,4.3464,206.96,206.9,1.31661748]
[1759149994647,11.9364,206.96,206.9,1.31661748]
[1759149995152,4.3467,206.95,206.9,1.31661748]
[1759149995354,7.59,206.94,206.9,8.68661748]
[1759149995847,7.59,206.94,206.9,7.37]
[1759149996046,7.59,206.94,206.9,8.68661748]
[1759149996647,7.59,206.93,206.9,8.68661748]
[1759149997351,4.3469,206.94,206.9,8.68661748]
[1759149997543,7.59,206.93,206.9,1.31661748]
[1759149997740,4.3471,206.93,206.9,1.31661748]
[1759149997942,7.59,206.92,206.88,1.31661748]
[1759149998147,4.3471,206.93,206.88,1.31661748]
[1759149998341,7.59,206.92,206.88,1.31661748]
[1759149998744,7.59,206.92,206.84,1.31661748]
[1759150000258,7.59,206.92,206.86,1.31661748]
[1759150000450,11.9373,206.92,206.86,1.31661748]
[1759150001152,7.59,206.92,206.88,8.68661748]
[1759150001352,11.9368,206.94,206.9,1.31661748]
[1759150001556,11.9368,206.94,206.9,8.68661748]
[1759150002256,3.39166791,206.93,206.9,8.68661748]
[1759150003265,10.98166791,206.93,206.9,8.68661748]
[1759150003562,4.3468,206.94,206.91,7.37]
[1759150005762,7.73893645,206.94,206.91,7.37]
[1759150005957,3.39213645,206.93,206.91,7.37]
[1759150006165,10.98213645,206.95,206.91,7.37]
[1759150006365,3.39213645,206.94,206.91,7.37]
[1759150006668,10.98213645,206.94,206.91,7.37]
[1759150006869,3.39213645,206.93,206.91,7.37]
[1759150007169,7.59,206.94,206.91,7.37]
[1759150007469,7.59,206.92,206.86,8.68661748]
[1759150008369,11.937,206.93,206.89,7.37]
[1759150008568,3.39632099,206.92,206.89,7.37]
[1759150009166,10.98632099,206.92,206.88,1.31661748]
[1759150009367,7.59,206.92,206.88,8.68661748]
[1759150010772,7.59,206.92,206.88,1.31661748]
[1759150010974,4.347,206.93,206.89,7.37]
[1759150011174,11.937,206.93,206.89,7.37]
[1759150011472,3.39826608,206.92,206.89,7.37]
[1759150011871,4.347,206.93,206.87,1.31661748]
[1759150012175,7.74526608,206.93,206.87,1.31661748]
[1759150012475,3.39826608,206.92,206.87,1.31661748]
[1759150012774,4.347,206.93,206.87,1.31661748]
[1759150013070,7.74526608,206.93,206.88,7.37]
[1759150013275,3.39826608,206.92,206.88,7.37]
[1759150013468,3.39826608,206.92,206.87,1.31661748]
[1759150013663,3.39826608,206.92,206.88,7.37]
[1759150013970,3.39826608,206.92,206.87,1.31661748]
[1759150014275,4.347,206.93,206.87,1.31661748]
[1759150014476,7.74526608,206.93,206.88,7.76]
[1759150014675,3.39826608,206.92,206.87,1.31661748]
[1759150014975,4.347,206.93,206.88,7.76]
[1759150015374,7.74943981,206.93,206.87,5.66471748]
[1759150015676,3.40243981,206.92,206.87,5.66471748]
[1759150015876,4.347,206.93,206.87,5.66471748]
[1759150016070,7.74943981,206.93,206.88,7.76]
[1759150016266,5.41137334,206.99,206.92,1.31661748]
[1759150016474,202.5132,207.29,206.99,7.76]
[1759150016475,7.91,207.06,206.99,7.76]
[1759150016678,7.91,207.06,207.02,7.76]
[1759150016872,0.84080311,207.07,206.96,7.76]
[1759150017078,0.84080311,207.07,207.04,7.76]
[1759150017276,7.91,207.1,207.04,7.76]
[1759150017577,7.91,207.14,207.05,10.04675675]
[1759150017774,7.91,207.14,207.07,1.31661748]
[1759150017974,4.3428,207.13,207.08,8.73013927]
[1759150018170,7.91,207.12,207.09,8.73013927]
[1759150018378,7.91,207.11,207.1,4.46280575]
[1759150018575,7.91,207.11,207.04,9.8107906]
[1759150018970,7.91,207.11,206.99,4.3457]
[1759150019171,7.91,207.11,207.0,13.85430087]
[1759150019472,7.91,207.12,207.0,9.8107906]
[1759150019668,7.91,207.08,207.0,9.8107906]
[1759150019872,7.91,207.08,207.0,7.76]
[1759150020276,7.91,207.06,206.98,6.09430087]
[1759150020476,7.91,207.06,206.98,2.0507906]
[1759150020880,7.91,207.06,206.99,11.80351027]
[1759150021081,7.91,207.06,206.99,7.76]
[1759150022677,2.0507906,207.12,206.99,7.76]
[1759150022678,7.91,207.12,207.01,9.8107906]
[1759150023976,4.3441,207.07,207.01,9.8107906]
[1759150024177,7.91,207.07,206.97,11.80351027]
[1759150024381,75.4859,207.07,206.97,7.76]
[1759150024679,67.5787,207.06,206.97,7.76]
[1759150024880,67.5883,207.03,206.93,2.0507906]
[1759150025182,67.5909,207.02,206.89,18.54831378]
[1759150025483,7.91,207.01,206.94,4.04351027]
[1759150025880,7.91,207.0,206.94,4.04351027]
[1759150026077,7.91,207.0,206.92,4.04351027]
[1759150026479,4.3465,206.96,206.92,4.04351027]
[1759150026679,7.91,206.95,206.92,4.04351027]
[1759150027085,7.91,206.95,206.93,4.04351027]
[1759150027478,7.91,206.95,206.92,4.04351027]
[1759150027779,12.2568,206.94,206.92,4.04351027]
[1759150027983,7.91,206.93,206.88,4.04351027]
[1759150028177,7.91,206.93,206.89,4.04351027]
[1759150028378,7.91,206.93,206.88,11.80351027]
[1759150028783,7.91,206.93,206.89,4.04351027]
[1759150029184,4.3464,206.96,206.9,4.04351027]
[1759150031382,7.91,206.97,206.9,4.04351027]
[1759150031584,7.91,206.97,206.92,11.80351027]
[1759150031781,4.3458,206.99,206.92,11.80351027]
[1759150031985,12.2561,206.98,206.92,7.76]
[1759150032285,12.2561,206.98,206.91,4.04351027]
[1759150032485,7.91,206.98,206.91,4.04351027]
[1759150033583,4.3463,206.97,206.91,4.04351027]
[1759150033781,7.91,206.98,206.9,4.04351027]
[1759150033980,7.91,206.98,206.89,4.04351027]
[1759150034477,4.3465,206.96,206.9,4.04351027]
[1759150035186,12.0665,206.96,206.9,4.04351027]
[1759150035690,4.3467,206.95,206.89,4.04351027]
[1759150035878,7.72,206.96,206.89,4.04351027]
[1759150036081,4.3469,206.94,206.89,4.04351027]
[1759150036283,4.3469,206.94,206.88,11.80351027]
[1759150036884,4.3471,206.93,206.88,11.80351027]
[1759150037088,7.72,206.92,206.88,11.80351027]
[1759150037682,7.72,206.92,206.88,4.04351027]
[1759150037683,7.72,206.91,206.88,4.04351027]
[1759150037882,7.72,206.94,206.87,4.04351027]
[1759150038089,7.72,206.9,206.86,4.04351027]
[1759150038291,7.72,206.88,206.84,4.04351027]
[1759150038591,7.72,206.88,206.81,4.04351027]
[1759150039489,7.72,206.84,206.8,4.04351027]
[1759150039791,7.72,206.84,206.78,182.86521968]
[1759150039792,7.72,206.87,206.78,182.86521968]
[1759150040592,67.6433,206.86,206.78,1.27321975]
[1759150040790,7.72,206.85,206.78,1.27321975]
[1759150040991,67.6433,206.86,206.75,7.51]
[1759150040992,7.72,206.79,206.75,4.04351027]
[1759150041291,7.72,206.81,206.71,11.55351027]
[1759150042689,4.3503,206.78,206.71,11.55351027]
[1759150042993,7.72,206.79,206.71,4.04351027]
[1759150043193,7.72,206.79,206.7,4.04351027]
[1759150043594,4.3507,206.76,206.69,4.04351027]
[1759150045097,8.04,206.75,206.69,4.04351027]
[1759150045299,8.04,206.74,206.66,4.04351027]
[1759150045500,8.04,206.74,206.63,11.51351027]
[1759150046404,4.3519,206.7,206.63,11.51351027]
[1759150046698,8.04,206.71,206.63,7.47]
[1759150048006,67.7008,206.69,206.59,4.04351027]
[1759150048197,67.7008,206.69,206.57,7.47]
[1759150048401,8.04,206.68,206.57,7.47]
[1759150049199,12.3924,206.68,206.57,7.47]
[1759150050396,8.04,206.68,206.58,4.3543]
[1759150050597,8.04,206.72,206.6,75.1978]
[1759150050793,8.04,206.76,206.61,7.47]
[1759150050993,47.48,206.75,206.61,7.47]
[1759150051200,4.3512,206.74,206.63,4.3532]
[1759150051398,47.48,206.75,206.64,7.47]
[1759150051900,8.04,206.74,206.64,7.47]
[1759150052199,4.3514,206.72,206.64,7.47]
[1759150053804,4.3514,206.72,206.64,11.8231]
[1759150054905,4.3518,206.7,206.64,7.47]
[1759150057902,8.04,206.71,206.64,7.47]
[1759150059908,4.351,206.74,206.64,7.47]
[1759150060204,351.88,206.78,206.66,7.47]
[1759150060402,356.2302,206.78,206.69,4.3519]
[1759150060596,356.2302,206.78,206.7,7.47]
[1759150060995,5.27212421,206.77,206.7,7.47]
[1759150062504,4.3505,206.77,206.7,7.47]
[1759150062707,8.04,206.79,206.7,7.47]
[1759150062903,119.7,206.81,206.7,7.47]
[1759150063097,4.3496,206.81,206.69,7.47]
[1759150063706,12.3891,206.83,206.75,7.47]
[1759150063900,119.76,206.86,206.75,7.47]
[1759150064106,4.3487,206.85,206.77,4.3502]
[1759150064312,119.78,206.88,206.78,7.47]
[1759150065111,4.3484,206.87,206.78,11.82]
[1759150067508,8.04,206.89,206.8,4.3497]
[1759150067807,8.04,206.95,206.81,7.47]